[Event "Early-Titled-Tuesday-Blitz-March-19-2024"]
[Site "Chess.com"]
[Date "2024.03.19"]
[Round "4"]
[White "ikhasu"]
[Black "SAInt_666"]
[Result "0-1"]
[WhiteElo "2476"]
[BlackElo "2747"]
[TimeControl "180+1"]
[EndTime "8:40:46 PDT"]
[Termination "SAInt_666 won by checkmate"]

1. d4 {[%clk 0:03:00.9]} 1... Nf6 {[%clk 0:02:58]} 2. Nf3 {[%clk 0:03:01]} 2...
d5 {[%clk 0:02:57.7]} 3. b3 {[%clk 0:02:57.4]} 3... Bf5 {[%clk 0:02:55.4]} 4.
Bb2 {[%clk 0:02:57.5]} 4... e6 {[%clk 0:02:54.8]} 5. Nbd2 {[%clk 0:02:56.2]}
5... h6 {[%clk 0:02:48.6]} 6. g3 {[%clk 0:02:56.4]} 6... Be7 {[%clk 0:02:42]} 7.
Bg2 {[%clk 0:02:56.6]} 7... O-O {[%clk 0:02:42.6]} 8. O-O {[%clk 0:02:56.7]}
8... a5 {[%clk 0:02:42.7]} 9. a3 {[%clk 0:02:50.6]} 9... a4 {[%clk 0:02:42.8]}
10. b4 {[%clk 0:02:50.5]} 10... Nbd7 {[%clk 0:02:36.1]} 11. c4 {[%clk 0:02:50]}
11... c6 {[%clk 0:02:32.5]} 12. Re1 {[%clk 0:02:48.1]} 12... b5 {[%clk
0:02:26.2]} 13. c5 {[%clk 0:02:43.7]} 13... Re8 {[%clk 0:02:20.4]} 14. Ne5
{[%clk 0:02:43.8]} 14... Nxe5 {[%clk 0:02:20.3]} 15. dxe5 {[%clk 0:02:43.7]}
15... Nd7 {[%clk 0:02:17.2]} 16. e4 {[%clk 0:02:42.7]} 16... Bg6 {[%clk
0:02:04.3]} 17. f4 {[%clk 0:02:41]} 17... Nf8 {[%clk 0:01:42.6]} 18. Qe2 {[%clk
0:02:28.9]} 18... Qd7 {[%clk 0:01:38.3]} 19. Rad1 {[%clk 0:02:27.9]} 19... Rad8
{[%clk 0:01:38.8]} 20. Nf1 {[%clk 0:02:23.1]} 20... Qc8 {[%clk 0:01:32.9]} 21.
f5 {[%clk 0:02:14.8]} 21... exf5 {[%clk 0:01:20.4]} 22. exd5 {[%clk 0:02:13.5]}
22... cxd5 {[%clk 0:01:17.4]} 23. Qxb5 {[%clk 0:02:11.6]} 23... f4 {[%clk
0:01:03.8]} 24. gxf4 {[%clk 0:02:09.5]} 24... Be4 {[%clk 0:00:58.6]} 25. Bxe4
{[%clk 0:01:57.1]} 25... dxe4 {[%clk 0:00:59.5]} 26. Ng3 {[%clk 0:01:57.4]}
26... Qg4 {[%clk 0:00:56.8]} 27. Qe2 {[%clk 0:01:30.4]} 27... Qxf4 {[%clk
0:00:56.2]} 28. Qxe4 {[%clk 0:01:30.5]} 28... Qg5 {[%clk 0:00:56.8]} 29. c6
{[%clk 0:01:20.6]} 29... Ne6 {[%clk 0:00:54.3]} 30. Rd7 {[%clk 0:01:13.6]} 30...
Rxd7 {[%clk 0:00:34.3]} 31. cxd7 {[%clk 0:01:13.3]} 31... Rd8 {[%clk 0:00:34.7]}
32. Bc1 {[%clk 0:01:13.7]} 32... Qg6 {[%clk 0:00:32]} 33. Rd1 {[%clk 0:01:08.2]}
33... Nf8 {[%clk 0:00:24.5]} 34. Qxg6 {[%clk 0:00:53.3]} 34... fxg6 {[%clk
0:00:25.4]} 35. Ne4 {[%clk 0:00:47.5]} 35... Rxd7 {[%clk 0:00:24.5]} 36. Rxd7
{[%clk 0:00:42.9]} 36... Nxd7 {[%clk 0:00:25.3]} 37. Bb2 {[%clk 0:00:41.6]}
37... Kf7 {[%clk 0:00:22.7]} 38. e6+ {[%clk 0:00:27.7]} 38... Kxe6 {[%clk
0:00:22.6]} 39. Bxg7 {[%clk 0:00:28.3]} 39... h5 {[%clk 0:00:21.8]} 40. Nc3
{[%clk 0:00:28]} 40... Nb6 {[%clk 0:00:19.3]} 41. Bd4 {[%clk 0:00:27.9]} 41...
Bf6 {[%clk 0:00:11]} 42. Bxf6 {[%clk 0:00:20.4]} 42... Kxf6 {[%clk 0:00:11.9]}
43. Kf2 {[%clk 0:00:20.4]} 43... Ke5 {[%clk 0:00:12.5]} 44. Ke3 {[%clk 0:00:18]}
44... g5 {[%clk 0:00:12.4]} 45. Ne4 {[%clk 0:00:08.2]} 45... Nc4+ {[%clk
0:00:09.4]} 46. Kf3 {[%clk 0:00:07.9]} 46... g4+ {[%clk 0:00:09]} 47. Kg3 {[%clk
0:00:06.8]} 47... Kxe4 {[%clk 0:00:09.6]} 48. Kh4 {[%clk 0:00:06.8]} 48... Nxa3
{[%clk 0:00:09.1]} 49. Kxh5 {[%clk 0:00:06.8]} 49... Nb5 {[%clk 0:00:09.8]} 50.
Kxg4 {[%clk 0:00:06.8]} 50... a3 {[%clk 0:00:10.7]} 51. h4 {[%clk 0:00:07.3]}
51... a2 {[%clk 0:00:11.5]} 52. h5 {[%clk 0:00:07.6]} 52... a1=Q {[%clk
0:00:12.3]} 53. h6 {[%clk 0:00:08.5]} 53... Qg1+ {[%clk 0:00:12.7]} 54. Kh5
{[%clk 0:00:07]} 54... Kf5 {[%clk 0:00:12.7]} 55. Kh4 {[%clk 0:00:06.8]} 55...
Qh2# {[%clk 0:00:13.3]} 0-1

[Event "Early-Titled-Tuesday-Blitz-March-19-2024"]
[Site "Chess.com"]
[Date "2024.03.19"]
[Round "4"]
[White "FREZZY23"]
[Black "DrCeltic"]
[Result "0-1"]
[WhiteElo "2412"]
[BlackElo "2574"]
[TimeControl "180+1"]
[EndTime "8:40:52 PDT"]
[Termination "DrCeltic won on time"]

1. Nf3 {[%clk 0:02:58.5]} 1... Nf6 {[%clk 0:02:59.9]} 2. g3 {[%clk 0:02:58.2]}
2... c5 {[%clk 0:03:00.4]} 3. Bg2 {[%clk 0:02:58]} 3... e6 {[%clk 0:03:01.2]} 4.
O-O {[%clk 0:02:57.9]} 4... Be7 {[%clk 0:03:01.7]} 5. c4 {[%clk 0:02:58.2]} 5...
O-O {[%clk 0:03:01.8]} 6. Nc3 {[%clk 0:02:58.8]} 6... d6 {[%clk 0:03:02]} 7. d4
{[%clk 0:02:58.9]} 7... cxd4 {[%clk 0:03:02.9]} 8. Nxd4 {[%clk 0:02:59]} 8... a6
{[%clk 0:03:03.5]} 9. h3 {[%clk 0:02:58.1]} 9... Qc7 {[%clk 0:03:04.1]} 10. b3
{[%clk 0:02:57.3]} 10... Nbd7 {[%clk 0:03:04.6]} 11. e4 {[%clk 0:02:57.1]} 11...
Ne5 {[%clk 0:03:03.5]} 12. Ba3 {[%clk 0:02:57]} 12... Bd7 {[%clk 0:03:02.3]} 13.
Qd2 {[%clk 0:02:54.6]} 13... Rac8 {[%clk 0:03:01.4]} 14. Rfd1 {[%clk 0:02:54.5]}
14... Rfd8 {[%clk 0:03:01.6]} 15. Rac1 {[%clk 0:02:54.2]} 15... Qb8 {[%clk
0:03:02]} 16. Qe2 {[%clk 0:02:49.6]} 16... Ng6 {[%clk 0:02:54.6]} 17. f4 {[%clk
0:02:32.7]} 17... h5 {[%clk 0:02:53.6]} 18. f5 {[%clk 0:02:13.1]} 18... Ne5
{[%clk 0:02:49.4]} 19. Nf3 {[%clk 0:02:03.9]} 19... Nxf3+ {[%clk 0:02:45.6]} 20.
Bxf3 {[%clk 0:02:03.1]} 20... b5 {[%clk 0:02:39.3]} 21. fxe6 {[%clk 0:01:59.7]}
21... fxe6 {[%clk 0:02:38.3]} 22. e5 {[%clk 0:01:59.4]} 22... Ne8 {[%clk
0:02:20.9]} 23. exd6 {[%clk 0:01:55.9]} 23... Bxd6 {[%clk 0:02:19.6]} 24. Bxd6
{[%clk 0:01:53.8]} 24... Nxd6 {[%clk 0:02:19.5]} 25. cxb5 {[%clk 0:01:38.9]}
25... axb5 {[%clk 0:02:17.9]} 26. Kg2 {[%clk 0:01:37.7]} 26... Nf5 {[%clk
0:02:17.5]} 27. Ne4 {[%clk 0:01:36]} 27... h4 {[%clk 0:02:09.8]} 28. g4 {[%clk
0:01:28.4]} 28... Ng3 {[%clk 0:02:09.4]} 29. Qf2 {[%clk 0:01:28.8]} 29... Qf4
{[%clk 0:01:51.5]} 30. Rxc8 {[%clk 0:01:25.1]} 30... Rxc8 {[%clk 0:01:51.2]} 31.
Nxg3 {[%clk 0:01:11.1]} 31... hxg3 {[%clk 0:01:49.6]} 32. Qd2 {[%clk 0:01:10.7]}
32... e5 {[%clk 0:01:10.3]} 33. Qxf4 {[%clk 0:00:29.9]} 33... exf4 {[%clk
0:01:10.4]} 34. Rxd7 {[%clk 0:00:30.3]} 34... Rc2+ {[%clk 0:01:11]} 35. Kg1
{[%clk 0:00:29.8]} 35... Rxa2 {[%clk 0:01:03.4]} 36. Rd4 {[%clk 0:00:29.7]}
36... Ra1+ {[%clk 0:01:00.6]} 37. Rd1 {[%clk 0:00:26.7]} 37... Ra2 {[%clk
0:00:57.1]} 38. Be4 {[%clk 0:00:23]} 38... Kf7 {[%clk 0:00:47.1]} 39. Rd5 {[%clk
0:00:18.9]} 39... Re2 {[%clk 0:00:40]} 40. Rf5+ {[%clk 0:00:18.2]} 40... Ke7
{[%clk 0:00:35.5]} 41. Rxf4 {[%clk 0:00:17.5]} 41... g5 {[%clk 0:00:35.9]} 42.
Rf3 {[%clk 0:00:15.7]} 42... Rxe4 {[%clk 0:00:34]} 43. Rxg3 {[%clk 0:00:16.2]}
43... Re2 {[%clk 0:00:34.4]} 44. Rg2 {[%clk 0:00:15.3]} 44... Re3 {[%clk
0:00:33.9]} 45. Rf2 {[%clk 0:00:15.2]} 45... Rxh3 {[%clk 0:00:30]} 46. Rf5
{[%clk 0:00:14.6]} 46... Rxb3 {[%clk 0:00:27.3]} 47. Rxg5 {[%clk 0:00:14.1]}
47... Rb2 {[%clk 0:00:27.9]} 48. Rf5 {[%clk 0:00:12.9]} 48... Ke6 {[%clk
0:00:28.1]} 49. Rf8 {[%clk 0:00:11.6]} 49... Ke7 {[%clk 0:00:24.5]} 50. Rf5
{[%clk 0:00:10.2]} 50... b4 {[%clk 0:00:24.5]} 51. g5 {[%clk 0:00:10.5]} 51...
Ke6 {[%clk 0:00:24.7]} 52. Rf8 {[%clk 0:00:10.4]} 52... Ke7 {[%clk 0:00:24.6]}
53. Rf4 {[%clk 0:00:09.6]} 53... b3 {[%clk 0:00:20.1]} 54. g6 {[%clk 0:00:09.9]}
54... Rc2 {[%clk 0:00:19.3]} 55. g7 {[%clk 0:00:07.8]} 55... b2 {[%clk
0:00:17.5]} 56. Re4+ {[%clk 0:00:07]} 56... Kf7 {[%clk 0:00:17.4]} 0-1

[Event "Early-Titled-Tuesday-Blitz-March-19-2024"]
[Site "Chess.com"]
[Date "2024.03.19"]
[Round "4"]
[White "IngOscarArdila"]
[Black "LiadCuba"]
[Result "0-1"]
[WhiteElo "2401"]
[BlackElo "2572"]
[TimeControl "180+1"]
[EndTime "8:40:52 PDT"]
[Termination "LiadCuba won by checkmate"]

1. d4 {[%clk 0:03:00]} 1... d5 {[%clk 0:02:58.9]} 2. c4 {[%clk 0:03:00.2]} 2...
e6 {[%clk 0:02:59.1]} 3. Nc3 {[%clk 0:02:59.8]} 3... Nf6 {[%clk 0:02:59.2]} 4.
Bg5 {[%clk 0:02:59.7]} 4... Be7 {[%clk 0:02:54.2]} 5. Nf3 {[%clk 0:02:59.6]}
5... h6 {[%clk 0:02:53.7]} 6. Bh4 {[%clk 0:02:59.5]} 6... O-O {[%clk 0:02:53.6]}
7. e3 {[%clk 0:02:59.7]} 7... a6 {[%clk 0:02:49.7]} 8. a4 {[%clk 0:02:53.8]}
8... c6 {[%clk 0:02:36]} 9. Qc2 {[%clk 0:02:51.3]} 9... Nbd7 {[%clk 0:02:27.6]}
10. Bd3 {[%clk 0:02:46.5]} 10... dxc4 {[%clk 0:02:26.2]} 11. Bxc4 {[%clk
0:02:46.6]} 11... Nd5 {[%clk 0:02:22.9]} 12. Bxe7 {[%clk 0:02:44.6]} 12... Qxe7
{[%clk 0:02:22.6]} 13. O-O {[%clk 0:02:37.5]} 13... Nxc3 {[%clk 0:02:16.9]} 14.
bxc3 {[%clk 0:02:35.9]} 14... e5 {[%clk 0:02:17]} 15. Rab1 {[%clk 0:02:22.8]}
15... b5 {[%clk 0:02:08.8]} 16. Bd3 {[%clk 0:02:17.7]} 16... Bb7 {[%clk
0:01:52.8]} 17. Rfd1 {[%clk 0:02:07.2]} 17... Rac8 {[%clk 0:01:40.4]} 18. Bh7+
{[%clk 0:02:04.4]} 18... Kh8 {[%clk 0:01:39.6]} 19. Bf5 {[%clk 0:02:04.7]} 19...
exd4 {[%clk 0:01:30.6]} 20. Rxd4 {[%clk 0:01:48.8]} 20... Rcd8 {[%clk
0:01:29.2]} 21. Rbd1 {[%clk 0:01:48.2]} 21... Nb6 {[%clk 0:01:25.8]} 22. a5
{[%clk 0:01:38.8]} 22... Nd5 {[%clk 0:01:16.2]} 23. c4 {[%clk 0:01:18.2]} 23...
Nf6 {[%clk 0:00:47.2]} 24. Qd2 {[%clk 0:00:52.7]} 24... Rxd4 {[%clk 0:00:46.8]}
25. exd4 {[%clk 0:00:52.7]} 25... Rd8 {[%clk 0:00:43.7]} 26. c5 {[%clk
0:00:49.7]} 26... Bc8 {[%clk 0:00:19.2]} 27. Bxc8 {[%clk 0:00:41.9]} 27... Rxc8
{[%clk 0:00:20.1]} 28. Ne5 {[%clk 0:00:42.2]} 28... Qc7 {[%clk 0:00:19.5]} 29.
Qf4 {[%clk 0:00:39.2]} 29... Kg8 {[%clk 0:00:18.7]} 30. h3 {[%clk 0:00:38.4]}
30... Nd5 {[%clk 0:00:18.6]} 31. Qf3 {[%clk 0:00:32.5]} 31... Re8 {[%clk
0:00:15.9]} 32. Re1 {[%clk 0:00:28.4]} 32... f6 {[%clk 0:00:15.3]} 33. Qh5
{[%clk 0:00:23.7]} 33... Qe7 {[%clk 0:00:10.1]} 34. f4 {[%clk 0:00:17.7]} 34...
Nxf4 {[%clk 0:00:10.3]} 35. Qf3 {[%clk 0:00:13.5]} 35... Nd5 {[%clk 0:00:09.2]}
36. Nd3 {[%clk 0:00:11.7]} 36... Qf8 {[%clk 0:00:08.8]} 37. Rxe8 {[%clk
0:00:10.8]} 37... Qxe8 {[%clk 0:00:09.7]} 38. Qf5 {[%clk 0:00:09.5]} 38... Qe3+
{[%clk 0:00:08.9]} 39. Kh2 {[%clk 0:00:09.7]} 39... Qxd4 {[%clk 0:00:09]} 40.
Qe6+ {[%clk 0:00:09.2]} 40... Kh8 {[%clk 0:00:08.9]} 41. Qe8+ {[%clk 0:00:08.9]}
41... Kh7 {[%clk 0:00:09.1]} 42. Ne1 {[%clk 0:00:06.2]} 42... Qf4+ {[%clk
0:00:06.8]} 43. Kg1 {[%clk 0:00:05.6]} 43... Qe3+ {[%clk 0:00:07]} 44. Qxe3
{[%clk 0:00:05.2]} 44... Nxe3 {[%clk 0:00:07.9]} 45. Kf2 {[%clk 0:00:05.9]}
45... Nc4 {[%clk 0:00:07.5]} 46. Nd3 {[%clk 0:00:05.1]} 46... Nxa5 {[%clk
0:00:07.9]} 47. Ke3 {[%clk 0:00:04.9]} 47... Nb7 {[%clk 0:00:07.4]} 48. Kd4
{[%clk 0:00:04.6]} 48... a5 {[%clk 0:00:07.8]} 49. Nf4 {[%clk 0:00:04.3]} 49...
a4 {[%clk 0:00:06.1]} 50. Nd3 {[%clk 0:00:04.4]} 50... a3 {[%clk 0:00:05.8]} 51.
Nb4 {[%clk 0:00:04.8]} 51... Kg6 {[%clk 0:00:03.3]} 52. Nxc6 {[%clk 0:00:04.9]}
52... a2 {[%clk 0:00:03.5]} 53. Ne7+ {[%clk 0:00:03.7]} 53... Kf7 {[%clk
0:00:03.9]} 54. c6 {[%clk 0:00:04.4]} 54... Nd6 {[%clk 0:00:03.1]} 55. c7 {[%clk
0:00:03.5]} 55... Kxe7 {[%clk 0:00:02.9]} 56. Kc5 {[%clk 0:00:03]} 56... Nc8
{[%clk 0:00:03.2]} 57. Kc6 {[%clk 0:00:03.5]} 57... a1=Q {[%clk 0:00:03.4]} 58.
Kb7 {[%clk 0:00:04.4]} 58... Kd7 {[%clk 0:00:03.3]} 59. Kb8 {[%clk 0:00:04.2]}
59... Nd6 {[%clk 0:00:04.2]} 60. c8=Q+ {[%clk 0:00:03.8]} 60... Nxc8 {[%clk
0:00:04.7]} 61. g4 {[%clk 0:00:03.8]} 61... Qa7# {[%clk 0:00:04.9]} 0-1

[Event "Early-Titled-Tuesday-Blitz-March-19-2024"]
[Site "Chess.com"]
[Date "2024.03.19"]
[Round "4"]
[White "LeRoidesChampions"]
[Black "BilodeauA"]
[Result "0-1"]
[WhiteElo "2666"]
[BlackElo "3044"]
[TimeControl "180+1"]
[EndTime "8:40:53 PDT"]
[Termination "BilodeauA won by checkmate"]

1. d4 {[%clk 0:02:59.7]} 1... d5 {[%clk 0:03:00]} 2. Bf4 {[%clk 0:02:59.5]} 2...
Nf6 {[%clk 0:02:59.2]} 3. e3 {[%clk 0:02:59.8]} 3... e6 {[%clk 0:03:00]} 4. Nf3
{[%clk 0:02:59]} 4... Bd6 {[%clk 0:03:00.7]} 5. Ne5 {[%clk 0:02:59.3]} 5... Nc6
{[%clk 0:02:58.9]} 6. Bb5 {[%clk 0:02:51.2]} 6... Bd7 {[%clk 0:02:58.3]} 7. Nxd7
{[%clk 0:02:50.6]} 7... Qxd7 {[%clk 0:02:56.9]} 8. Bxd6 {[%clk 0:02:47.1]} 8...
Qxd6 {[%clk 0:02:53.8]} 9. Nd2 {[%clk 0:02:45.4]} 9... O-O {[%clk 0:02:53.4]}
10. O-O {[%clk 0:02:44.7]} 10... Ne7 {[%clk 0:02:52.8]} 11. c4 {[%clk
0:02:42.6]} 11... c6 {[%clk 0:02:51.9]} 12. c5 {[%clk 0:02:42.5]} 12... Qc7
{[%clk 0:02:51.1]} 13. Bd3 {[%clk 0:02:42.9]} 13... e5 {[%clk 0:02:50.6]} 14.
dxe5 {[%clk 0:02:39.8]} 14... Qxe5 {[%clk 0:02:46.5]} 15. Qc2 {[%clk 0:02:40.2]}
15... g6 {[%clk 0:02:27.5]} 16. Nf3 {[%clk 0:02:40.2]} 16... Qc7 {[%clk
0:02:26.9]} 17. Nd4 {[%clk 0:02:40.1]} 17... Nd7 {[%clk 0:02:18.8]} 18. b4
{[%clk 0:02:39.6]} 18... a6 {[%clk 0:02:16.1]} 19. a4 {[%clk 0:02:37.9]} 19...
Rfe8 {[%clk 0:02:15.5]} 20. Rab1 {[%clk 0:02:36.8]} 20... Kf8 {[%clk 0:02:06.1]}
21. Qc3 {[%clk 0:02:32]} 21... Ng8 {[%clk 0:02:05]} 22. Rfc1 {[%clk 0:02:22.3]}
22... Ngf6 {[%clk 0:02:04]} 23. h3 {[%clk 0:02:15.6]} 23... h5 {[%clk
0:02:02.9]} 24. b5 {[%clk 0:02:09.1]} 24... axb5 {[%clk 0:02:02.2]} 25. axb5
{[%clk 0:02:10]} 25... Ra2 {[%clk 0:01:54.3]} 26. bxc6 {[%clk 0:02:07.4]} 26...
bxc6 {[%clk 0:01:54]} 27. Rb2 {[%clk 0:02:07.7]} 27... Rxb2 {[%clk 0:01:51]} 28.
Qxb2 {[%clk 0:02:07.8]} 28... Rb8 {[%clk 0:01:51.4]} 29. Qa3 {[%clk 0:02:02]}
29... Ne5 {[%clk 0:01:47.9]} 30. Rb1 {[%clk 0:01:56.4]} 30... Kg7 {[%clk
0:01:42.4]} 31. Rxb8 {[%clk 0:01:48.3]} 31... Qxb8 {[%clk 0:01:43.3]} 32. f4
{[%clk 0:01:47.7]} 32... Nxd3 {[%clk 0:01:35.7]} 33. Qxd3 {[%clk 0:01:48.6]}
33... Qa8 {[%clk 0:01:33.4]} 34. Qb3 {[%clk 0:01:40.3]} 34... Ne4 {[%clk
0:01:23.6]} 35. Qb2 {[%clk 0:01:27.3]} 35... Kh7 {[%clk 0:01:22.2]} 36. Nf3
{[%clk 0:01:06.1]} 36... Qa5 {[%clk 0:01:16.3]} 37. Qb7 {[%clk 0:01:00.2]} 37...
Kg7 {[%clk 0:01:10.5]} 38. Qb2+ {[%clk 0:00:46.9]} 38... Kh7 {[%clk 0:00:50.9]}
39. Qb7 {[%clk 0:00:45.9]} 39... Kg7 {[%clk 0:00:48.9]} 40. Qb2+ {[%clk
0:00:45.6]} 40... Nc3 {[%clk 0:00:32.2]} 41. Qb6 {[%clk 0:00:27.5]} 41... Qa4
{[%clk 0:00:28.4]} 42. Qb2 {[%clk 0:00:21.8]} 42... Qc4 {[%clk 0:00:28.1]} 43.
Qb8 {[%clk 0:00:13.1]} 43... Qxc5 {[%clk 0:00:17.3]} 44. Qe5+ {[%clk 0:00:13.7]}
44... Kg8 {[%clk 0:00:12.5]} 45. Qe8+ {[%clk 0:00:13.7]} 45... Kg7 {[%clk
0:00:12.4]} 46. Ng5 {[%clk 0:00:13.1]} 46... Ne2+ {[%clk 0:00:03.5]} 47. Kh2
{[%clk 0:00:12.5]} 47... Qa7 {[%clk 0:00:03.8]} 48. Qxc6 {[%clk 0:00:11.5]}
48... Qxe3 {[%clk 0:00:03.5]} 49. Ne6+ {[%clk 0:00:01.4]} 49... Qxe6 {[%clk
0:00:03.6]} 50. Qc7 {[%clk 0:00:02]} 50... Nd4 {[%clk 0:00:03.5]} 51. Qc3 {[%clk
0:00:01.7]} 51... Qf6 {[%clk 0:00:04.1]} 52. Qg3 {[%clk 0:00:02.4]} 52... Ne6
{[%clk 0:00:04.5]} 53. Qf2 {[%clk 0:00:03]} 53... Qxf4+ {[%clk 0:00:05]} 54. Kh1
{[%clk 0:00:02.4]} 54... Qxf2 {[%clk 0:00:05.1]} 55. g4 {[%clk 0:00:03.3]} 55...
Qf1+ {[%clk 0:00:05.4]} 56. Kh2 {[%clk 0:00:03.5]} 56... Qf4+ {[%clk 0:00:06]}
57. Kg2 {[%clk 0:00:03.8]} 57... hxg4 {[%clk 0:00:06.9]} 58. h4 {[%clk
0:00:04.5]} 58... Qf3+ {[%clk 0:00:07.1]} 59. Kh2 {[%clk 0:00:04.7]} 59... g3+
{[%clk 0:00:07.8]} 60. Kh3 {[%clk 0:00:05]} 60... Nf4# {[%clk 0:00:08.4]} 0-1

[Event "Early-Titled-Tuesday-Blitz-March-19-2024"]
[Site "Chess.com"]
[Date "2024.03.19"]
[Round "4"]
[White "Sofia_Blokhin"]
[Black "viktorskliarov"]
[Result "1/2-1/2"]
[WhiteElo "2257"]
[BlackElo "2583"]
[TimeControl "180+1"]
[EndTime "8:40:53 PDT"]
[Termination "Game drawn by repetition"]

1. d4 {[%clk 0:03:00.9]} 1... Nf6 {[%clk 0:02:59.5]} 2. c4 {[%clk 0:03:00.6]}
2... e6 {[%clk 0:02:59.5]} 3. Nc3 {[%clk 0:03:00.2]} 3... Bb4 {[%clk 0:02:59.6]}
4. e3 {[%clk 0:03:00.4]} 4... b6 {[%clk 0:02:59.9]} 5. Bd3 {[%clk 0:02:58.8]}
5... Bb7 {[%clk 0:02:59.6]} 6. Nf3 {[%clk 0:02:58.9]} 6... Ne4 {[%clk
0:02:59.9]} 7. Qc2 {[%clk 0:02:56.6]} 7... f5 {[%clk 0:02:57.2]} 8. a3 {[%clk
0:02:54.2]} 8... Bxc3+ {[%clk 0:02:57.4]} 9. bxc3 {[%clk 0:02:54.2]} 9... O-O
{[%clk 0:02:58.1]} 10. O-O {[%clk 0:02:53.8]} 10... d6 {[%clk 0:02:51]} 11. a4
{[%clk 0:02:50.9]} 11... a5 {[%clk 0:02:27.6]} 12. Ba3 {[%clk 0:02:47.3]} 12...
Nd7 {[%clk 0:02:23.8]} 13. Nd2 {[%clk 0:02:41.2]} 13... Qh4 {[%clk 0:02:18.5]}
14. f3 {[%clk 0:02:36]} 14... Nxd2 {[%clk 0:02:03.9]} 15. Qxd2 {[%clk
0:02:35.4]} 15... Rae8 {[%clk 0:02:03.2]} 16. Rae1 {[%clk 0:02:20.8]} 16... e5
{[%clk 0:01:28.2]} 17. f4 {[%clk 0:01:56.5]} 17... e4 {[%clk 0:00:48.1]} 18. Bc2
{[%clk 0:01:54.6]} 18... Rf6 {[%clk 0:00:39.9]} 19. g3 {[%clk 0:01:53.6]} 19...
Qh3 {[%clk 0:00:36.4]} 20. Qg2 {[%clk 0:01:50.9]} 20... Qxg2+ {[%clk 0:00:33.8]}
21. Kxg2 {[%clk 0:01:51.1]} 21... c5 {[%clk 0:00:30.6]} 22. d5 {[%clk
0:01:41.9]} 22... Ba6 {[%clk 0:00:28.8]} 23. Bb3 {[%clk 0:01:42]} 23... Kf7
{[%clk 0:00:28.6]} 24. Rb1 {[%clk 0:01:39.8]} 24... Rg8 {[%clk 0:00:25.1]} 25.
h4 {[%clk 0:01:35.9]} 25... g6 {[%clk 0:00:24.7]} 26. Ba2 {[%clk 0:01:34.9]}
26... h6 {[%clk 0:00:23.8]} 27. Rh1 {[%clk 0:01:16.1]} 27... g5 {[%clk
0:00:19.1]} 28. hxg5 {[%clk 0:01:10.5]} 28... hxg5 {[%clk 0:00:19.4]} 29. Rh7+
{[%clk 0:01:09.9]} 29... Rg7 {[%clk 0:00:19.7]} 30. Rbh1 {[%clk 0:00:59.7]}
30... Rg6 {[%clk 0:00:14.9]} 31. Rxg7+ {[%clk 0:00:51.7]} 31... Rxg7 {[%clk
0:00:14.9]} 32. Kf2 {[%clk 0:00:52.1]} 32... gxf4 {[%clk 0:00:12.3]} 33. gxf4
{[%clk 0:00:52.3]} 33... Nf6 {[%clk 0:00:12.2]} 34. Rb1 {[%clk 0:00:47.7]} 34...
Nd7 {[%clk 0:00:09.4]} 35. Rh1 {[%clk 0:00:45.9]} 35... Kg8 {[%clk 0:00:08.4]}
36. Rh5 {[%clk 0:00:39.6]} 36... Rh7 {[%clk 0:00:06.2]} 37. Rxh7 {[%clk
0:00:32]} 37... Kxh7 {[%clk 0:00:06.6]} 38. Bc1 {[%clk 0:00:28.6]} 38... Kg6
{[%clk 0:00:06.7]} 39. Bd2 {[%clk 0:00:26.8]} 39... Kh5 {[%clk 0:00:07]} 40. Be1
{[%clk 0:00:22.6]} 40... Kg6 {[%clk 0:00:06.1]} 41. Kg3 {[%clk 0:00:21.7]} 41...
Nf6 {[%clk 0:00:06.3]} 42. Kf2 {[%clk 0:00:16.3]} 42... Ng4+ {[%clk 0:00:06.6]}
43. Ke2 {[%clk 0:00:16.7]} 43... Kh5 {[%clk 0:00:07]} 44. Bg3 {[%clk 0:00:16]}
44... Nh6 {[%clk 0:00:06.6]} 45. Be1 {[%clk 0:00:14.2]} 45... Kg4 {[%clk
0:00:06.3]} 46. Bf2 {[%clk 0:00:14.3]} 46... Kh3 {[%clk 0:00:06.7]} 47. Be1
{[%clk 0:00:14.1]} 47... Ng4 {[%clk 0:00:06.1]} 48. Bd2 {[%clk 0:00:12.5]} 48...
Nh2 {[%clk 0:00:06.4]} 49. Be1 {[%clk 0:00:11]} 49... Nf3 {[%clk 0:00:07]} 50.
Bf2 {[%clk 0:00:11.4]} 50... Kg2 {[%clk 0:00:07.2]} 51. Be1 {[%clk 0:00:10]}
51... Nxe1 {[%clk 0:00:07.3]} 52. Kxe1 {[%clk 0:00:10.2]} 52... Kf3 {[%clk
0:00:08]} 53. Kd2 {[%clk 0:00:10.6]} 53... Kf2 {[%clk 0:00:08.4]} 54. Bb3 {[%clk
0:00:10.3]} 54... Bc8 {[%clk 0:00:05.3]} 55. Bc2 {[%clk 0:00:09.4]} 55... Bd7
{[%clk 0:00:05.6]} 56. Bb3 {[%clk 0:00:09.7]} 56... Be8 {[%clk 0:00:06]} 57. Bc2
{[%clk 0:00:09.9]} 57... Bh5 {[%clk 0:00:06.1]} 58. Bb3 {[%clk 0:00:09.5]} 58...
Be2 {[%clk 0:00:06.1]} 59. Ba2 {[%clk 0:00:09.8]} 59... Bd3 {[%clk 0:00:04.7]}
60. Bb3 {[%clk 0:00:10.1]} 60... Be2 {[%clk 0:00:04.9]} 61. Ba2 {[%clk
0:00:10.6]} 61... Bd3 {[%clk 0:00:04.6]} 62. Bb3 {[%clk 0:00:11.1]} 62... Be2
{[%clk 0:00:05]} 1/2-1/2